[Event "FIDE Womens Candidates 2024"]
[Site "Toronto"]
[Date "2024.04.04"]
[Round "1.2"]
[White "Muzychuk, Anna"]
[Black "Salimova, Nurgyul"]
[Result "1/2-1/2"]
[ECO "C43"]
[WhiteElo "2520"]
[BlackElo "2432"]
[Annotator "TA"]
[PlyCount "80"]
[EventDate "2024.04.02"]
[EventType "tourn"]
[EventCountry "CAN"]
[SourceTitle "playchess.com"]
[Source "ChessBase"]
[SourceQuality "1"]
[TimeControl "40/5400+30:1800+30"]

{[%evp 17,80,9,11,17,6,0,0,0,0,0,0,8,13,2,0,0,14,16,15,0,0,0,14,0,7,3,9,4,4,0,6,0,0,0,0,0,0,-2,-3,-7,0,0,0,0,0,0,0,0,0,0,0,0,0,0,0,0,0,0,0,0,0,-8,0,-8,0]} 1. e4 {[%emt 0:00:03]} e5 {[%emt 0:00:09]} 2. Nf3 {[%emt 0:00:07]} Nf6 {[%emt 0:00:10]} 3. d4 {[%emt 0:00:52]} Nxe4 {[%emt 0:00:23]} 4. Bd3 {[%emt 0:00:21]} d5 {[%emt 0:01:21]} 5. Nxe5 {[%emt 0:00:23]} Nd7 {[%emt 0:02:31]} 6. Nxd7 {[%emt 0:00:54]} Bxd7 {[%emt 0:04:11]} 7. O-O {[%emt 0:00:24]} Bd6 {[%emt 0:01:30]} 8. Nc3 {[%emt 0:00:25]} Nxc3 {[%emt 0:00:50]} 9. bxc3 {[%emt 0:00:05]} O-O {[%emt 0:00:21] The position is equal.} 10. Qh5 {[%emt 0:00:39][%csl Gd3,LRd5,LRh7][%cal Rh5h7] [#] Dodges Qh4} f5 {[%emt 0:00:28]} 11. Rb1 {[%emt 0:00:50]} b6 {[%emt 0:01:37]} 12. Re1 {[%emt 0:01:09]} c6 {[%emt 0:02:18]} 13. Bg5 {[%emt 0:01:15]} Qc7 {[%emt 0:00:48]} 14. c4 {[%emt 0:01:33]} Be8 {[%emt 0:15:39]} 15. Qf3 {[%emt 0:00:16][%csl LRd5,LRf5]} dxc4 {[%emt 0:01:20]} 16. Bxc4+ {[%emt 0:00:20]} (16. Bxf5 $2 {perishes.} Bd7 17. Re6 (17. g4 $2 g6 $19) 17... Bxh2+ (17... Bxe6 $2 18. Bxe6+ Kh8 19. Qh5 $19) 18. Kh1 Bxe6 19. Bxe6+ Kh8 $19) 16... Bf7 {[%emt 0:00:17]} 17. Bxf7+ {[%emt 0:00:20]} Rxf7 {[%emt 0:01:05]} 18. h3 {[%emt 0:00:47]} f4 {[%emt 0:11:15][%cal Bf5f4,Bf4f3,Bf3g2][%mdl 32]} 19. Bh4 {[%emt 0:14:03]} Bf8 {[%emt 0:05:58]} 20. Re6 {[%emt 0:05:41]} Rc8 {[%emt 0:01:12]} 21. c4 {[%emt 0:17:27]} Qd7 {[%emt 0:07:50]} 22. Qe4 {[%emt 0:11:40]} f3 $1 {[%emt 0:01:40]} 23. Re1 {[%emt 0:10:24]} fxg2 {[%emt 0:01:00]} 24. Bg3 {[%emt 0:00:49]} Rd8 {[%emt 0:03:02]} 25. Rd1 {[%emt 0:11:37]} Re7 {[%emt 0:09:30]} 26. Rxe7 {[%emt 0:00:23]} Qxe7 {[%emt 0:00:55]} 27. Qxe7 {[%emt 0:00:49]} ({Much weaker is} 27. Qxg2 Qe2 28. Qf1 Qxa2 $17) 27... Bxe7 {[%emt 0:00:06]} 28. Kxg2 $11 {[%emt 0:00:12][%mdl 4096] Endgame. KRB-KRB} Kf7 {[%emt 0:02:29]} (28... Bf6 $5) 29. Kf3 {[%emt 0:00:24]} Bd6 {[%emt 0:03:35]} 30. Ke4 {[%emt 0:07:20]} Bxg3 {[%emt 0:03:14]} 31. fxg3 {[%emt 0:00:04] KR-KR} Re8+ {[%emt 0:00:40]} 32. Kd3 {[%emt 0:02:29]} Re6 {[%emt 0:00:39]} 33. d5 {[%emt 0:03:29]} Rg6 {[%emt 0:03:59]} 34. dxc6 {[%emt 0:04:48]} Rxc6 {[%emt 0:00:27]} 35. Kc3 {[%emt 0:00:31]} Ke7 {[%emt 0:00:26]} 36. Kb4 {[%emt 0:00:35]} Rc5 {[%emt 0:01:06]} 37. Re1+ {[%emt 0:02:30]} Kd7 {[%emt 0:00:38]} 38. Rd1+ {[%emt 0:00:22]} Ke7 {[%emt 0:00:10]} 39. Re1+ {[%emt 0:00:03]} Kd7 {[%emt 0:00:04]} 40. Rd1+ {[%emt 0:00:00]} Ke7 {[%emt 0:00:00] An interesting draw.   Weighted Error Value: White=0.01 (flawless) /Black=0.02 (flawless) .  OK:         	White=22    	Black=11     Strong:       	---       	Black=1} 1/2-1/2

[Event "FIDE Womens Candidates 2024"]
[Site "Toronto"]
[Date "2024.04.06"]
[Round "3.2"]
[White "Muzychuk, Anna"]
[Black "Lagno, Kateryna"]
[Result "1/2-1/2"]
[ECO "C88"]
[WhiteElo "2520"]
[BlackElo "2542"]
[Annotator "TA"]
[PlyCount "87"]
[EventDate "2024.04.02"]
[EventType "tourn"]
[EventCountry "CAN"]
[SourceTitle "playchess.com"]
[Source "ChessBase"]
[SourceQuality "1"]
[TimeControl "40/5400+30:1800+30"]

{[%evp 19,87,19,24,14,7,5,9,0,0,0,0,0,0,0,0,0,0,0,0,-10,28,31,30,25,39,34,55,29,32,18,31,0,29,16,32,30,52,52,43,53,90,89,89,66,233,61,77,0,327,345,235,225,662,659,668,0,639,603,603,0,0,0,585,0,0,0,0,2,2,0]} 1. e4 {[%emt 0:00:03]} e5 {[%emt 0:00:06]} 2. Nf3 {[%emt 0:00:06]} Nc6 {[%emt 0:00:05]} 3. Bb5 {[%emt 0:00:09]} a6 {[%emt 0:00:24]} 4. Ba4 {[%emt 0:00:07]} Nf6 {[%emt 0:00:13]} 5. O-O {[%emt 0:00:14]} Be7 {[%emt 0:00:12]} 6. Re1 {[%emt 0:03:43]} b5 {[%emt 0:00:34]} 7. Bb3 {[%emt 0:00:02]} O-O {[%emt 0:00:06]} 8. h3 {[%emt 0:05:22] 8.a4 is setting a new trend.} Bb7 {[%emt 0:03:03]} 9. d3 {[%emt 0:00:54]} d5 {[%emt 0:01:12] C88: Closed Ruy Lopez: Anti-Marshall Systems.} 10. exd5 {[%emt 0:00:25]} Nxd5 {[%emt 0:00:05]} 11. Nc3 {[%emt 0:04:59]} Nxc3 {[%emt 0:02:43]} 12. bxc3 {[%emt 0:00:02]} Bf6 {[%emt 0:09:48]} 13. Nd2 {[%emt 0:00:09]} Na5 {[%emt 0:00:53]} 14. Ne4 {[%emt 0:02:41]} Be7 {[%emt 0:03:56]} 15. Qh5 {[%emt 0:16:31]} Nxb3 {[%emt 0:03:23]} 16. axb3 {[%emt 0:00:07]} f6 {[%emt 0:20:01]} 17. Ba3 {[%emt 0:04:48]} Bxa3 {[%emt 0:12:38]} 18. Rxa3 {[%emt 0:00:02]} a5 $146 {[%emt 0:11:22]} ({Predecessor:} 18... Qd5 19. Qf5 a5 20. c4 bxc4 21. bxc4 Qc6 22. h4 a4 23. h5 h6 24. Qh3 Bc8 {0-1 Feldis,Y (2037)-Guidoni,M (2284) FRA Cup/15/D/01 email 2015}) 19. Nc5 {[%emt 0:11:26]} Qd5 {[%emt 0:00:51]} 20. Nxb7 {[%emt 0:00:14]} Qxb7 {[%emt 0:00:05]} 21. c4 {[%emt 0:11:56]} bxc4 {[%emt 0:05:49]} 22. dxc4 {[%emt 0:00:10]} a4 {[%emt 0:00:08]} 23. bxa4 {[%emt 0:04:43]} Qb4 {[%emt 0:00:38]} 24. Rea1 {[%emt 0:00:15]} Qxc4 {[%emt 0:02:07]} 25. a5 {[%emt 0:00:12]} Ra6 {[%emt 0:00:06]} 26. Qf3 {[%emt 0:03:44]} c6 {[%emt 0:02:58]} 27. Qd1 {[%emt 0:09:09]} Rfa8 {[%emt 0:11:48]} 28. Rd3 {[%emt 0:02:16]} h6 $1 {[%emt 0:01:21]} 29. Rd8+ {[%emt 0:05:46]} Rxd8 {[%emt 0:00:05]} 30. Qxd8+ {[%emt 0:00:05]} Kh7 {[%emt 0:00:28]} 31. Qc8 {[%emt 0:00:54]} Qb5 $2 {[%emt 0:02:17]} (31... Qd4 $14 32. Ra3 Ra7 33. Qf5+ (33. Qxc6 Qb4 $14) 33... Kh8) 32. Qf5+ $2 {[%emt 0:07:07]} (32. Rd1 $1 $18 e4 33. Rd8 Qxa5 34. g3 (34. Rh8+ Kg6 $18)) 32... Kh8 $1 $14 {[%emt 0:00:22]} 33. Qc8+ $2 {[%emt 0:00:14]} (33. Qd7 $16) 33... Kh7 $18 {[%emt 0:00:01]} 34. Rd1 $1 {[%emt 0:02:12]} e4 {[%emt 0:00:29] [#]} 35. Rd8 $1 {[%emt 0:04:00]} Rxa5 $2 {[%emt 0:00:21]} (35... Qxa5 36. c3 (36. Rh8+ Kg6 $16) 36... Ra7) 36. Rh8+ $18 {[%emt 0:00:39]} Kg6 {[%emt 0:00:03] [#]} 37. Qg4+ $2 {[%emt 0:00:56]} (37. Qe8+ $1 $18 Kf5 38. Qh5+ Ke6 39. Re8+ Kd6 40. Qd1+ Kc5 41. Rd8 (41. Rxe4 Ra4 $18)) 37... Kf7 $2 {[%emt 0:00:39][%mdl 8192]} (37... Qg5 $11 38. Qxe4+ Qf5 39. Qe8+ (39. Qxc6 Ra1+ 40. Kh2 Qf4+ 41. g3 Qxf2+ 42. Qg2 Rf1 $14) 39... Kg5 40. Qe3+ (40. Qxc6 Ra1+ 41. Kh2 Qf4+ 42. g3 Qxf2+ 43. Qg2 Qxg2+ 44. Kxg2 Rd1 $11) 40... Kg6) 38. Qd7+ $18 {[%emt 0:00:45]} (38. Qxe4 Qe5 (38... Ra1+ 39. Kh2 $14) 39. Qc4+ Kg6 40. Qg4+ (40. Qxc6 $2 Ra1#) 40... Kf7 41. Qd7+ Kg6 42. Qg4+ (42. Qxc6 $2 Ra1#) 42... Kf7 43. Qd7+ Kg6 44. Qg4+ $11 (44. Qxc6 $2 Ra1#)) 38... Kg6 {[%emt 0:00:02]} 39. Qg4+ $2 {[%emt 0:00:45]} (39. Qe8+ $18 Kf5 40. Qh5+ Ke6 41. Re8+ Kd6 42. Qd1+ Kc5 43. Qd7 (43. Rxe4 Ra4 $18)) 39... Kf7 $11 {[%emt 0:00:01]} 40. Qd7+ $2 {[%emt 0:00:00][%mdl 8192]} (40. Qxe4 $11 Qe5 (40... Ra1+ 41. Kh2 $14) 41. Qc4+ Kg6 42. Qg4+ (42. Qxc6 $2 Ra1#) 42... Kf7 43. Rd8) 40... Kg6 $18 {[%emt 0:00:47]} 41. Rg8 $2 {[%emt 0:19:44]} (41. Qe8+ $18 Kf5 42. Qh5+ Ke6 43. Re8+ Kd6 44. Qd1+ Kc5 45. Qd7 (45. Rxe4 Ra4 $18)) 41... Ra1+ $11 {[%emt 0:00:55]} 42. Kh2 {[%emt 0:00:04]} Qe5+ {[%emt 0:00:09]} 43. g3 {[%emt 0:00:02]} f5 {[%emt 0:00:21]} 44. Qxc6+ {[%emt 0:03:35]} 1/2-1/2

[Event "FIDE Womens Candidates 2024"]
[Site "Toronto"]
[Date "2024.04.07"]
[Round "4.4"]
[White "Muzychuk, Anna"]
[Black "Lei, Tingjie"]
[Result "1/2-1/2"]
[ECO "C01"]
[WhiteElo "2520"]
[BlackElo "2550"]
[Annotator "RC"]
[PlyCount "150"]
[EventDate "2024.04.02"]
[EventType "tourn"]
[EventCountry "CAN"]
[SourceTitle "playchess.com"]
[Source "ChessBase"]
[SourceQuality "1"]
[TimeControl "40/5400+30:1800+30"]

1. e4 {[%emt 0:00:02]} e6 {[%emt 0:00:10]} 2. d4 {[%emt 0:00:42]} d5 {[%emt 0:00:09]} 3. exd5 {[%emt 0:03:17]} exd5 {[%emt 0:00:08]} 4. Nf3 {[%emt 0:00:03]} Nf6 {[%emt 0:00:13]} 5. Bd3 {[%emt 0:00:27]} Bd6 {[%emt 0:00:15]} 6. O-O {[%emt 0:00:26]} O-O {[%emt 0:00:11]} 7. Bg5 {[%emt 0:00:24]} Re8 {[%emt 0:04:36]} 8. Nbd2 {[%emt 0:03:38]} Bg4 {[%emt 0:07:01]} 9. h3 {[%emt 0:20:09]} Bh5 {[%emt 0:00:32]} 10. c4 {[%emt 0:00:17]} dxc4 {[%emt 0:13:08]} 11. Nxc4 {[%emt 0:00:06]} Nc6 {[%emt 0:00:08]} 12. g4 {[%emt 0:00:23]} Bg6 {[%emt 0:00:09]} 13. Bxg6 {[%emt 0:00:16]} hxg6 {[%emt 0:00:19]} 14. Qb3 {[%emt 0:04:27]} Qd7 {[%emt 0:08:35]} 15. Bxf6 {[%emt 0:09:56]} gxf6 {[%emt 0:00:08]} 16. d5 {[%emt 0:04:14]} Ne5 {[%emt 0:22:28]} 17. Nfxe5 {[%emt 0:01:05]} Bxe5 {[%emt 0:00:14]} 18. Qxb7 {[%emt 0:04:21]} Rab8 {[%emt 0:01:01]} 19. Nxe5 {[%emt 0:13:01]} fxe5 {[%emt 0:00:07]} 20. Qxa7 {[%emt 0:00:06]} Qxd5 {[%emt 0:10:38]} 21. b3 {[%emt 0:01:39]} c5 {[%emt 0:04:08]} 22. Rfe1 {[%emt 0:01:38]} Ra8 {[%emt 0:03:30]} 23. Qc7 {[%emt 0:00:35]} Qd3 {[%emt 0:01:24]} 24. Qxc5 {[%emt 0:13:32]} Qxh3 {[%emt 0:01:39]} 25. Qc4 {[%emt 0:00:15]} Kg7 {[%emt 0:06:25]} 26. Qe4 {[%emt 0:00:27]} Ra3 {[%emt 0:01:54]} 27. Re3 {[%emt 0:01:18]} Qh4 {[%emt 0:00:25]} 28. Kg2 {[%emt 0:00:52]} Qg5 {[%emt 0:01:09]} 29. Rh3 {[%emt 0:04:47]} Qd2 {[%emt 0:11:13]} 30. Qe3 {[%emt 0:09:32]} Qxe3 {[%emt 0:00:49]} 31. Rxe3 {[%emt 0:00:01]} f6 {[%emt 0:01:32]} 32. b4 {[%emt 0:01:20]} Ra4 {[%emt 0:00:03]} 33. a3 {[%emt 0:00:26]} Rb8 {[%emt 0:01:21]} 34. Rc1 {[%emt 0:00:44]} Kh6 {[%emt 0:00:14]} 35. Kg3 {[%emt 0:00:34]} Rba8 {[%emt 0:00:29]} 36. Rcc3 {[%emt 0:02:01]} Kg5 {[%emt 0:00:05]} 37. f3 {[%emt 0:00:10]} Rd8 {[%emt 0:00:58]} 38. Red3 {[%emt 0:01:13]} Rda8 {[%emt 0:00:23]} 39. Re3 {[%emt 0:00:26]} Rd8 {[%emt 0:00:14]} 40. Rc5 {[%emt 0:00:00]} Rda8 {[%emt 0:00:00]} 41. f4+ {[%emt 0:04:16]} Kh6 {[%emt 0:01:28]} 42. fxe5 {[%emt 0:04:49]} Rxa3 {[%emt 0:01:50]} 43. Rxa3 {[%emt 0:00:10]} Rxa3+ {[%emt 0:00:02]} 44. Kf4 {[%emt 0:00:04]} g5+ {[%emt 0:05:59]} 45. Ke4 {[%emt 0:07:21]} Rg3 {[%emt 0:05:35]} 46. e6 {[%emt 0:02:32]} Rxg4+ {[%emt 0:00:05]} 47. Kd5 {[%emt 0:00:04]} Rxb4 {[%emt 0:01:07]} 48. e7 {[%emt 0:00:45]} Rb8 {[%emt 0:00:05]} 49. Ke6 {[%emt 0:00:04]} Kg6 {[%emt 0:00:08]} 50. Rd5 {[%emt 0:00:26]} Re8 {[%emt 0:00:42]} 51. Rd8 {[%emt 0:00:21]} Rxe7+ {[%emt 0:00:06]} 52. Kxe7 {[%emt 0:00:02]} Kf5 {[%emt 0:00:05]} 53. Rd5+ {[%emt 0:10:03]} Kf4 {[%emt 0:04:56]} 54. Kxf6 {[%emt 0:00:21]} g4 {[%emt 0:00:08]} 55. Rd4+ {[%emt 0:06:45]} Kf3 {[%emt 0:00:05]} 56. Kf5 {[%emt 0:00:18]} g3 {[%emt 0:00:04]} 57. Rd3+ {[%emt 0:00:04]} Kf2 {[%emt 0:00:04]} 58. Kg4 {[%emt 0:00:19]} g2 {[%emt 0:00:06]} 59. Rd2+ {[%emt 0:00:01]} Kf1 {[%emt 0:00:07]} 60. Kf3 {[%emt 0:00:15]} g1=N+ {[%emt 0:00:19]} 61. Ke3 {[%emt 0:00:04]} Nh3 {[%emt 0:02:59]} 62. Rh2 {[%emt 0:00:13]} Ng1 {[%emt 0:00:06]} 63. Rf2+ {[%emt 0:01:40]} Ke1 {[%emt 0:00:05]} 64. Rf6 {[%emt 0:01:04]} Nh3 {[%emt 0:01:45]} 65. Rf3 {[%emt 0:01:22]} Ng1 {[%emt 0:00:11]} 66. Rg3 {[%emt 0:00:35]} Kf1 {[%emt 0:00:38]} 67. Rg6 {[%emt 0:00:15]} Nh3 {[%emt 0:02:18]} 68. Rg7 {[%emt 0:00:04]} Ng1 {[%emt 0:00:05]} 69. Rg3 {[%emt 0:00:09]} Ne2 {[%emt 0:00:04]} 70. Rf3+ {[%emt 0:00:06]} Ke1 {[%emt 0:00:03]} 71. Rf7 {[%emt 0:01:17]} Ng1 {[%emt 0:00:07]} 72. Kd3 {[%emt 0:00:10]} Nh3 {[%emt 0:00:23]} 73. Rh7 {[%emt 0:00:20]} Nf2+ {[%emt 0:03:03]} 74. Ke3 {[%emt 0:00:05]} Nd1+ {[%emt 0:00:07]} 75. Kd3 {[%emt 0:00:02]} Nf2+ {[%emt 0:00:05]} 1/2-1/2

[Event "FIDE Womens Candidates 2024"]
[Site "Toronto"]
[Date "2024.04.11"]
[Round "7.3"]
[White "Muzychuk, Anna"]
[Black "Koneru, Humpy"]
[Result "1/2-1/2"]
[ECO "C70"]
[WhiteElo "2520"]
[BlackElo "2546"]
[Annotator "TA"]
[PlyCount "80"]
[EventDate "2024.04.02"]
[EventType "tourn"]
[EventCountry "CAN"]
[SourceTitle "playchess.com"]
[Source "ChessBase"]
[SourceQuality "1"]
[TimeControl "40/5400+30:1800+30"]

{[%evp 9,80,37,56,29,35,33,40,46,42,24,29,17,27,25,18,11,44,14,50,41,82,34,41,55,58,27,22,21,27,20,10,31,17,18,22,0,20,0,0,2,4,3,3,2,2,0,0,0,0,0,0,0,0,0,0,0,0,0,0,0,0,0,0,0,0,0,0,0,0,0,0,0,0]} 1. e4 {[%emt 0:00:02]} e5 {[%emt 0:00:08]} 2. Nf3 {[%emt 0:00:09]} Nc6 {[%emt 0:00:13]} 3. Bb5 {[%emt 0:00:06]} a6 {[%emt 0:00:20]} 4. Ba4 {[%emt 0:00:08]} Nge7 {[%emt 0:00:18]} 5. c3 {[%emt 0:05:18]} Ng6 {[%emt 0:00:27]} 6. d4 {[%emt 0:03:09]} exd4 {[%emt 0:00:27]} 7. cxd4 {[%emt 0:00:41]} Bb4+ {[%emt 0:00:28]} 8. Bd2 {[%emt 0:00:34] White is slightly better.} Bxd2+ {[%emt 0:01:34]} 9. Nbxd2 {[%emt 0:07:28]} O-O {[%emt 0:02:25]} 10. O-O {[%emt 0:13:12]} d5 {[%emt 0:01:52]} 11. Bxc6 {[%emt 0:00:10]} bxc6 {[%emt 0:00:08]} 12. e5 {[%emt 0:00:47]} f6 {[%emt 0:08:52][%cal Oc6c5]} 13. Re1 {[%emt 0:07:42]} fxe5 {[%emt 0:11:27]} 14. Nxe5 {[%emt 0:01:18]} Qf6 {[%emt 0:00:56]} 15. Ndf3 {[%emt 0:16:19] Active counter play!} (15. Qf3 $16) 15... Nxe5 $14 {[%emt 0:01:29]} 16. dxe5 {[%emt 0:00:07]} Qg6 {[%emt 0:04:55]} 17. Re3 {[%emt 0:00:18]} Bg4 $1 {[%emt 0:07:35] [#]} 18. h3 $1 {[%emt 0:10:00]} d4 {[%emt 0:15:37]} (18... Bxh3 19. Nh4 Qg5 20. Rxh3 $18) 19. Rd3 {[%emt 0:00:14]} (19. Qxd4 $2 Bxf3 20. Qc4+ Bd5 $19) 19... Bxf3 {[%emt 0:00:36]} (19... Bxh3 $2 20. Nh4 (20. Nxd4 $2 Qxg2#) 20... Qe4 21. Rxh3 $18) 20. Rxf3 {[%emt 0:00:01]} Rxf3 {[%emt 0:14:12]} 21. Qxf3 $11 {[%emt 0:00:02][%mdl 4096] Endgame. KQR-KQR. The position is equal.} Qc2 {[%emt 0:00:35] Dodges Rc1} 22. Rd1 {[%emt 0:09:54]} Rd8 {[%emt 0:02:02]} 23. e6 {[%emt 0:06:17]} Rf8 {[%emt 0:03:31] Repels Qf7+} 24. Qb3 {[%emt 0:01:31]} Qxf2+ {[%emt 0:03:22]} 25. Kh1 {[%emt 0:00:06] [#] e7+ would now be deadly.} Re8 {[%emt 0:00:38]} 26. Qc4 {[%emt 0:03:24][%csl LRa6,LRc6,LRd4] And now Rf1 would win.} Qe3 {[%emt 0:04:05]} 27. Qxc6 {[%emt 0:01:15][%cal Rc6e8]} Qxe6 {[%emt 0:03:49]} ({Much weaker is} 27... Rxe6 $6 28. Qxc7 Re8 29. Qc4+ Qe6 30. Qxe6+ (30. Qxd4 Qxa2 31. Kg1 h6 $11) (30. Rxd4 Qxc4 31. Rxc4 Re2 $16) 30... Rxe6 31. Rxd4 $16) 28. Qxe6+ {[%emt 0:00:14]} Rxe6 {[%emt 0:00:05]} 29. Rxd4 {[%emt 0:00:04] KR-KR} Re2 {[%emt 0:00:38]} 30. Ra4 {[%emt 0:00:46]} Rxb2 {[%emt 0:00:16]} 31. Rxa6 {[%emt 0:00:01]} c5 {[%emt 0:04:49]} 32. Rc6 {[%emt 0:00:24]} Rxa2 {[%emt 0:00:05]} 33. Rxc5 {[%emt 0:00:03]} h6 {[%emt 0:00:09]} 34. Kh2 {[%emt 0:00:04]} Ra3 {[%emt 0:00:04]} 35. Rb5 {[%emt 0:00:06]} Kf7 {[%emt 0:00:07]} 36. Rb7+ {[%emt 0:00:03]} Kf6 {[%emt 0:00:06]} 37. Rb6+ {[%emt 0:00:03]} Kf7 {[%emt 0:00:05]} 38. Rb7+ {[%emt 0:00:01]} Kf6 {[%emt 0:00:06]} 39. Rb6+ {[%emt 0:00:02]} Kf7 {[%emt 0:00:06]} 40. Rb7+ {[%emt 0:00:00]} Kf6 {[%emt 0:00:00] Weighted Error Value: White=0.08 (flawless) /Black=0.03 (flawless) .  Mistake:       	White=1     	---        Inaccurate:     	White=2     	Black=2      OK:         	White=14    	Black=16     Best:        	White=3     	Black=1      Strong:       	---       	Black=1} 1/2-1/2

[Event "FIDE Womens Candidates 2024"]
[Site "Toronto"]
[Date "2024.04.14"]
[Round "9.4"]
[White "Muzychuk, Anna"]
[Black "Goryachkina, Aleksandra"]
[Result "1/2-1/2"]
[ECO "C67"]
[WhiteElo "2520"]
[BlackElo "2553"]
[Annotator "TA"]
[PlyCount "89"]
[EventDate "2024.04.02"]
[EventType "tourn"]
[EventCountry "CAN"]
[SourceTitle "playchess.com"]
[Source "ChessBase"]
[SourceQuality "1"]
[TimeControl "40/5400+30:1800+30"]

{[%evp 18,89,20,20,22,-16,-25,-11,-5,-10,-16,-6,-11,-6,-10,-6,-11,-5,-12,-9,-3,-3,-2,-6,-4,-5,-9,-35,-35,-38,-33,-22,-21,-25,-26,-29,-32,-27,-23,-27,-8,-30,-30,-28,0,-52,-36,-50,-50,-67,-31,-31,-33,-30,-29,-34,-36,-38,-31,-41,-17,-41,0,0,0,0,0,0,0,0,0,0,0,0]} 1. e4 {[%emt 0:00:03]} e5 {[%emt 0:00:21]} 2. Nf3 {[%emt 0:00:06]} Nc6 {[%emt 0:00:13]} 3. Bb5 {[%emt 0:00:07]} Nf6 {[%emt 0:00:44]} 4. O-O {[%emt 0:00:33][%cal Bh1f1,Bf1e1,Be1e5][%mdl 32]} Nxe4 {[%emt 0:01:14]} 5. Re1 {[%emt 0:00:10]} Nd6 {[%emt 0:00:35]} 6. Nxe5 {[%emt 0:00:15]} Be7 {[%emt 0:00:39][%cal Bf8e7,Be7f6,Bf6d4][%mdl 32]} 7. Bf1 {[%emt 0:00:20]} Nxe5 {[%emt 0:00:40]} 8. Rxe5 {[%emt 0:00:05]} O-O {[%emt 0:00:25]} 9. d4 {[%emt 0:00:13]} Bf6 {[%emt 0:00:34]} 10. Re1 {[%emt 0:00:07]} Re8 {[%emt 0:00:34]} 11. Nc3 {[%emt 0:01:07]} Rxe1 {[%emt 0:01:57]} 12. Qxe1 {[%emt 0:00:02]} Bxd4 {[%emt 0:01:21]} 13. Bf4 {[%emt 0:00:38]} Ne8 $1 {[%emt 0:01:11]} 14. Nd5 {[%emt 0:00:17]} d6 {[%emt 0:01:16]} 15. Bg5 {[%emt 0:00:22]} f6 {[%emt 0:01:06]} 16. Be3 {[%emt 0:00:22]} Be5 {[%emt 0:04:24][%cal Oc7c6]} 17. f4 {[%emt 0:00:19]} Bxb2 {[%emt 0:01:29]} 18. Rb1 {[%emt 0:00:08]} Ba3 {[%emt 0:01:26]} 19. Qa5 {[%emt 0:01:37]} Be6 {[%emt 0:12:53][%cal Oa3c5]} 20. Bc4 $1 {[%emt 0:04:54]} c6 {[%emt 0:04:02][%csl LRa5,LRd5]} 21. Qxd8 {[%emt 0:00:13]} Rxd8 {[%emt 0:00:02]} 22. Nxf6+ {[%emt 0:00:16]} Kf7 $1 {[%emt 0:09:49]} 23. Bxe6+ {[%emt 0:01:23]} Kxf6 {[%emt 0:04:27]} ({Inferior is} 23... Kxe6 24. Nxe8 Rxe8 25. Rb3 $18) 24. Bg8 {[%emt 0:00:13]} Bc5 {[%emt 0:07:13]} 25. Bxc5 {[%emt 0:00:13]} dxc5 {[%emt 0:00:06]} 26. Bxh7 $11 {[%emt 0:00:08][%mdl 4096] Endgame. KRB-KRN} (26. Rxb7 $2 {loses.} Nd6 27. Rc7 Rxg8 $19) 26... Nd6 {[%emt 0:02:39]} 27. g4 {[%emt 0:05:25]} g6 {[%emt 0:04:41]} 28. Re1 $1 {[%emt 0:02:05]} Nf7 {[%emt 0:12:37] Threatening ...Rd4.} 29. g5+ {[%emt 0:03:29]} Kg7 {[%emt 0:01:44][%cal Od8d4] [#] aiming for ...Rd4!} 30. Re7 $1 {[%emt 0:04:21][%cal Of4f5] Strongly threatening f5!} Rf8 {[%emt 0:01:21]} (30... Rh8 $5 31. Bxg6 Kxg6 32. f5+ Kxg5 33. Rxf7 c4 $17) 31. Rxb7 {[%emt 0:08:45]} (31. Bxg6 $1 $11 Kxg6 32. Kg2) 31... Kxh7 {[%emt 0:00:22]} (31... a5 $5 32. Rc7 Kxh7 33. Rxc6 Nd8 34. Rxc5 Rxf4 35. Rxa5 Nc6 $17) 32. Rxa7 {[%emt 0:00:24] KRN-KR} Kg8 {[%emt 0:01:24]} 33. Rc7 {[%emt 0:05:30]} Ra8 {[%emt 0:06:28] ...Nd8 would now be deadly.} (33... Nh8 $5 {[%cal Rf8f4]} 34. Rxc6 Rxf4 35. Rxc5 Nf7 $19) 34. Rxc6 {[%emt 0:00:22]} Kg7 {[%emt 0:00:36]} 35. Rxc5 {[%emt 0:02:48]} Nd6 {[%emt 0:06:21]} 36. Rc7+ {[%emt 0:06:37]} Kf8 {[%emt 0:00:31]} 37. Kf2 {[%emt 0:00:49]} Rxa2 {[%emt 0:01:27]} 38. Kf3 {[%emt 0:04:21]} Ra3+ {[%emt 0:01:07]} 39. c3 {[%emt 0:06:00]} Nb5 {[%emt 0:02:50]} 40. Rc8+ {[%emt 0:00:00] The position is equal.} Kf7 {[%emt 0:00:00]} 41. Kg4 {[%emt 0:01:22]} Rxc3 {[%emt 0:05:30]} 42. Rxc3 {[%emt 0:02:45]} Nxc3 {[%emt 0:00:03]} 43. f5 {[%emt 0:00:08]} Nd5 {[%emt 0:00:14] [#] And now ...Ne3+ would win.} 44. fxg6+ {[%emt 0:00:07]} Kxg6 {[%emt 0:00:06]} 45. h4 {[%emt 0:00:07] Weighted Error Value: White=0.06 (flawless) /Black=0.05 (flawless) .  Mistake:       	White=1     	---        Inaccurate:     	White=2     	Black=3      OK:         	White=20    	Black=15     Best:        	White=1     	Black=4      Strong:       	White=3     	Black=2} 1/2-1/2